{"text_format":"3","workbook":"xlsx","n_sheets":4,"sheets":["Зведення","Підсумок","Доходи","Витрати"],"not_rendered":{"defined_names":13},"read":"whole","date_system":"1900"}

{"sheet":"Зведення","index":0,"n_rows":6,"n_cols":3,"rows_kept":6,"merged":[[0,1,0,2],[1,1,1,2]]}
[null,"МІСЯЧНИЙ СІМЕЙНИЙ БЮДЖЕТ"]
[null,"ЗВЕДЕННЯ"]
[null,"Баланс","Сума"]
[null,"Прогнозований баланс (різниця прогнозованого доходу та витрат)",{"$f":"ПрогнозованийДохід-ПрогнозованіВитрати","v":{"v":1114,"d":"1,114₴"}}]
[null,"Фактичний баланс (різниця фактичного доходу та витрат)",{"$f":"ФактичнийДохід-ФактичніВитрати","v":{"v":997,"d":"997₴"}}]
[null,"Різниця (різниця фактичної та прогнозованої сум)",{"$f":"ФактичнийБаланс-ПрогнозованийБаланс","v":{"v":-117,"d":"-117₴"}}]

{"sheet":"Підсумок","index":1,"n_rows":6,"n_cols":3,"rows_kept":6,"merged":[[0,1,0,2],[1,1,1,2]]}
[null,{"$f":"Заголовок_книги","v":"МІСЯЧНИЙ СІМЕЙНИЙ БЮДЖЕТ"}]
[null,"Підсумок"]
[null,"Підсумок","Сума"]
[null,"Загальні прогнозовані витрати",{"$f":"ПрогнозованіВитрати","v":{"v":4486,"d":"4,486₴"}}]
[null,"Загальні фактичні витрати",{"$f":"ФактичніВитрати","v":{"v":4603,"d":"4,603₴"}}]
[null,"Загальна різниця",{"$f":"C4-C5","v":{"v":-117,"d":"-117₴"}}]

{"sheet":"Доходи","index":2,"n_rows":7,"n_cols":5,"rows_kept":7,"merged":[[0,1,0,4],[1,1,1,4]]}
[null,{"$f":"Заголовок_книги","v":"МІСЯЧНИЙ СІМЕЙНИЙ БЮДЖЕТ"}]
[null,"ДОХОДИ"]
[null,"ПРОГНОЗОВАНИЙ ДОХІД","Прогнозовано","Фактично","Різниця"]
[null,"Доходи 1",{"v":4000,"d":"4,000.00₴"},{"v":4000,"d":"4,000.00₴"},{"$f":"ТаблицяДоходи[[#This Row],[Прогнозовано]]-ТаблицяДоходи[[#This Row],[Фактично]]","v":{"v":0,"d":"0.00₴"}}]
[null,"Доходи 2",{"v":1300,"d":"1,300.00₴"},{"v":1300,"d":"1,300.00₴"},{"$f":"ТаблицяДоходи[[#This Row],[Прогнозовано]]-ТаблицяДоходи[[#This Row],[Фактично]]","v":{"v":0,"d":"0.00₴"}}]
[null,"Додатковий дохід",{"v":300,"d":"300.00₴"},{"v":300,"d":"300.00₴"},{"$f":"ТаблицяДоходи[[#This Row],[Прогнозовано]]-ТаблицяДоходи[[#This Row],[Фактично]]","v":{"v":0,"d":"0.00₴"}}]
[null,"Загальний щомісячний дохід",{"$f":"SUBTOTAL(109,ТаблицяДоходи[Прогнозовано])","v":{"v":5600,"d":"5,600.00₴"}},{"$f":"SUBTOTAL(109,ТаблицяДоходи[Фактично])","v":{"v":5600,"d":"5,600.00₴"}},{"$f":"SUBTOTAL(109,ТаблицяДоходи[Різниця])","v":{"v":0,"d":"0.00₴"}}]

{"sheet":"Витрати","index":3,"n_rows":80,"n_cols":6,"rows_kept":80,"merged":[[0,1,0,5],[1,1,1,5],[2,1,2,5]]}
[null,{"$f":"Заголовок_книги","v":"МІСЯЧНИЙ СІМЕЙНИЙ БЮДЖЕТ"}]
[null,"ВИТРАТИ"]
[null,"У цій клітинці наведено роздільник, який дає змогу фільтрувати таблицю \"Витрати\" за категорією."]
[null,"Категорія","Підкатегорія","Прогнозовано","Фактично","Різниця"]
[null,"Житло","Іпотека або оренда",{"v":1000,"d":"1,000.00₴"},{"v":1000,"d":"1,000.00₴"},{"$f":"ТаблицяВитрати[[#This Row],[Прогнозовано]]-ТаблицяВитрати[[#This Row],[Фактично]]","v":{"v":0,"d":"0.00₴"}}]
[null,"Житло","Друга іпотека або оренда",{"v":0,"d":"0.00₴"},{"v":0,"d":"0.00₴"},{"$f":"ТаблицяВитрати[[#This Row],[Прогнозовано]]-ТаблицяВитрати[[#This Row],[Фактично]]","v":{"v":0,"d":"0.00₴"}}]
[null,"Житло","Телефон",{"v":54,"d":"54.00₴"},{"v":100,"d":"100.00₴"},{"$f":"ТаблицяВитрати[[#This Row],[Прогнозовано]]-ТаблицяВитрати[[#This Row],[Фактично]]","v":{"v":-46,"d":"-46.00₴"}}]
[null,"Житло","Електроенергія",{"v":44,"d":"44.00₴"},{"v":56,"d":"56.00₴"},{"$f":"ТаблицяВитрати[[#This Row],[Прогнозовано]]-ТаблицяВитрати[[#This Row],[Фактично]]","v":{"v":-12,"d":"-12.00₴"}}]
[null,"Житло","Газ",{"v":22,"d":"22.00₴"},{"v":28,"d":"28.00₴"},{"$f":"ТаблицяВитрати[[#This Row],[Прогнозовано]]-ТаблицяВитрати[[#This Row],[Фактично]]","v":{"v":-6,"d":"-6.00₴"}}]
[null,"Житло","Постачання води й водовідведення",{"v":8,"d":"8.00₴"},{"v":8,"d":"8.00₴"},{"$f":"ТаблицяВитрати[[#This Row],[Прогнозовано]]-ТаблицяВитрати[[#This Row],[Фактично]]","v":{"v":0,"d":"0.00₴"}}]
[null,"Житло","Кабельне ТБ",{"v":34,"d":"34.00₴"},{"v":34,"d":"34.00₴"},{"$f":"ТаблицяВитрати[[#This Row],[Прогнозовано]]-ТаблицяВитрати[[#This Row],[Фактично]]","v":{"v":0,"d":"0.00₴"}}]
[null,"Житло","Вивезення сміття",{"v":10,"d":"10.00₴"},{"v":10,"d":"10.00₴"},{"$f":"ТаблицяВитрати[[#This Row],[Прогнозовано]]-ТаблицяВитрати[[#This Row],[Фактично]]","v":{"v":0,"d":"0.00₴"}}]
[null,"Житло","Обслуговування або ремонт",{"v":23,"d":"23.00₴"},{"v":0,"d":"0.00₴"},{"$f":"ТаблицяВитрати[[#This Row],[Прогнозовано]]-ТаблицяВитрати[[#This Row],[Фактично]]","v":{"v":23,"d":"23.00₴"}}]
[null,"Житло","Матеріали",{"v":0,"d":"0.00₴"},{"v":0,"d":"0.00₴"},{"$f":"ТаблицяВитрати[[#This Row],[Прогнозовано]]-ТаблицяВитрати[[#This Row],[Фактично]]","v":{"v":0,"d":"0.00₴"}}]
[null,"Житло","Інше",{"v":0,"d":"0.00₴"},{"v":0,"d":"0.00₴"},{"$f":"ТаблицяВитрати[[#This Row],[Прогнозовано]]-ТаблицяВитрати[[#This Row],[Фактично]]","v":{"v":0,"d":"0.00₴"}}]
[null,"Транспорт","Плата за авто 1",{"v":16,"d":"16.00₴"},{"v":66,"d":"66.00₴"},{"$f":"ТаблицяВитрати[[#This Row],[Прогнозовано]]-ТаблицяВитрати[[#This Row],[Фактично]]","v":{"v":-50,"d":"-50.00₴"}}]
[null,"Транспорт","Плата за авто 2",{"v":35,"d":"35.00₴"},{"v":42,"d":"42.00₴"},{"$f":"ТаблицяВитрати[[#This Row],[Прогнозовано]]-ТаблицяВитрати[[#This Row],[Фактично]]","v":{"v":-7,"d":"-7.00₴"}}]
[null,"Транспорт","Транспорт/таксі",{"v":1,"d":"1.00₴"},{"v":62,"d":"62.00₴"},{"$f":"ТаблицяВитрати[[#This Row],[Прогнозовано]]-ТаблицяВитрати[[#This Row],[Фактично]]","v":{"v":-61,"d":"-61.00₴"}}]
[null,"Транспорт","Страхування",{"v":91,"d":"91.00₴"},{"v":27,"d":"27.00₴"},{"$f":"ТаблицяВитрати[[#This Row],[Прогнозовано]]-ТаблицяВитрати[[#This Row],[Фактично]]","v":{"v":64,"d":"64.00₴"}}]
[null,"Транспорт","Ліцензування",{"v":80,"d":"80.00₴"},{"v":89,"d":"89.00₴"},{"$f":"ТаблицяВитрати[[#This Row],[Прогнозовано]]-ТаблицяВитрати[[#This Row],[Фактично]]","v":{"v":-9,"d":"-9.00₴"}}]
[null,"Транспорт","Паливо",{"v":18,"d":"18.00₴"},{"v":93,"d":"93.00₴"},{"$f":"ТаблицяВитрати[[#This Row],[Прогнозовано]]-ТаблицяВитрати[[#This Row],[Фактично]]","v":{"v":-75,"d":"-75.00₴"}}]
[null,"Транспорт","Обслуговування",{"v":34,"d":"34.00₴"},{"v":37,"d":"37.00₴"},{"$f":"ТаблицяВитрати[[#This Row],[Прогнозовано]]-ТаблицяВитрати[[#This Row],[Фактично]]","v":{"v":-3,"d":"-3.00₴"}}]
[null,"Транспорт","Інше",{"v":83,"d":"83.00₴"},{"v":61,"d":"61.00₴"},{"$f":"ТаблицяВитрати[[#This Row],[Прогнозовано]]-ТаблицяВитрати[[#This Row],[Фактично]]","v":{"v":22,"d":"22.00₴"}}]
[null,"Страхування","Дім",{"v":48,"d":"48.00₴"},{"v":63,"d":"63.00₴"},{"$f":"ТаблицяВитрати[[#This Row],[Прогнозовано]]-ТаблицяВитрати[[#This Row],[Фактично]]","v":{"v":-15,"d":"-15.00₴"}}]
[null,"Страхування","Здоров’я",{"v":21,"d":"21.00₴"},{"v":44,"d":"44.00₴"},{"$f":"ТаблицяВитрати[[#This Row],[Прогнозовано]]-ТаблицяВитрати[[#This Row],[Фактично]]","v":{"v":-23,"d":"-23.00₴"}}]
[null,"Страхування","Життя",{"v":35,"d":"35.00₴"},{"v":65,"d":"65.00₴"},{"$f":"ТаблицяВитрати[[#This Row],[Прогнозовано]]-ТаблицяВитрати[[#This Row],[Фактично]]","v":{"v":-30,"d":"-30.00₴"}}]
[null,"Страхування","Інше",{"v":14,"d":"14.00₴"},{"v":75,"d":"75.00₴"},{"$f":"ТаблицяВитрати[[#This Row],[Прогнозовано]]-ТаблицяВитрати[[#This Row],[Фактично]]","v":{"v":-61,"d":"-61.00₴"}}]
[null,"Їжа","Продукти",{"v":79,"d":"79.00₴"},{"v":0,"d":"0.00₴"},{"$f":"ТаблицяВитрати[[#This Row],[Прогнозовано]]-ТаблицяВитрати[[#This Row],[Фактично]]","v":{"v":79,"d":"79.00₴"}}]
[null,"Їжа","Ресторани/кафе",{"v":56,"d":"56.00₴"},{"v":50,"d":"50.00₴"},{"$f":"ТаблицяВитрати[[#This Row],[Прогнозовано]]-ТаблицяВитрати[[#This Row],[Фактично]]","v":{"v":6,"d":"6.00₴"}}]
[null,"Їжа","Інше",{"v":96,"d":"96.00₴"},{"v":23,"d":"23.00₴"},{"$f":"ТаблицяВитрати[[#This Row],[Прогнозовано]]-ТаблицяВитрати[[#This Row],[Фактично]]","v":{"v":73,"d":"73.00₴"}}]
[null,"Діти","Медицина",{"v":90,"d":"90.00₴"},{"v":90,"d":"90.00₴"},{"$f":"ТаблицяВитрати[[#This Row],[Прогнозовано]]-ТаблицяВитрати[[#This Row],[Фактично]]","v":{"v":0,"d":"0.00₴"}}]
[null,"Діти","Одяг",{"v":33,"d":"33.00₴"},{"v":30,"d":"30.00₴"},{"$f":"ТаблицяВитрати[[#This Row],[Прогнозовано]]-ТаблицяВитрати[[#This Row],[Фактично]]","v":{"v":3,"d":"3.00₴"}}]
[null,"Діти","Шкільні внески",{"v":86,"d":"86.00₴"},{"v":64,"d":"64.00₴"},{"$f":"ТаблицяВитрати[[#This Row],[Прогнозовано]]-ТаблицяВитрати[[#This Row],[Фактично]]","v":{"v":22,"d":"22.00₴"}}]
[null,"Діти","Шкільне приладдя",{"v":76,"d":"76.00₴"},{"v":2,"d":"2.00₴"},{"$f":"ТаблицяВитрати[[#This Row],[Прогнозовано]]-ТаблицяВитрати[[#This Row],[Фактично]]","v":{"v":74,"d":"74.00₴"}}]
[null,"Діти","Екскурсії тощо",{"v":60,"d":"60.00₴"},{"v":90,"d":"90.00₴"},{"$f":"ТаблицяВитрати[[#This Row],[Прогнозовано]]-ТаблицяВитрати[[#This Row],[Фактично]]","v":{"v":-30,"d":"-30.00₴"}}]
[null,"Діти","Кишенькові гроші",{"v":37,"d":"37.00₴"},{"v":60,"d":"60.00₴"},{"$f":"ТаблицяВитрати[[#This Row],[Прогнозовано]]-ТаблицяВитрати[[#This Row],[Фактично]]","v":{"v":-23,"d":"-23.00₴"}}]
[null,"Діти","Догляд",{"v":22,"d":"22.00₴"},{"v":70,"d":"70.00₴"},{"$f":"ТаблицяВитрати[[#This Row],[Прогнозовано]]-ТаблицяВитрати[[#This Row],[Фактично]]","v":{"v":-48,"d":"-48.00₴"}}]
[null,"Діти","Іграшки/ігри",{"v":80,"d":"80.00₴"},{"v":21,"d":"21.00₴"},{"$f":"ТаблицяВитрати[[#This Row],[Прогнозовано]]-ТаблицяВитрати[[#This Row],[Фактично]]","v":{"v":59,"d":"59.00₴"}}]
[null,"Діти","Інше",{"v":65,"d":"65.00₴"},{"v":20,"d":"20.00₴"},{"$f":"ТаблицяВитрати[[#This Row],[Прогнозовано]]-ТаблицяВитрати[[#This Row],[Фактично]]","v":{"v":45,"d":"45.00₴"}}]
[null,"Домашні тварини","Їжа",{"v":37,"d":"37.00₴"},{"v":34,"d":"34.00₴"},{"$f":"ТаблицяВитрати[[#This Row],[Прогнозовано]]-ТаблицяВитрати[[#This Row],[Фактично]]","v":{"v":3,"d":"3.00₴"}}]
[null,"Домашні тварини","Медицина",{"v":74,"d":"74.00₴"},{"v":86,"d":"86.00₴"},{"$f":"ТаблицяВитрати[[#This Row],[Прогнозовано]]-ТаблицяВитрати[[#This Row],[Фактично]]","v":{"v":-12,"d":"-12.00₴"}}]
[null,"Домашні тварини","Грумінг",{"v":80,"d":"80.00₴"},{"v":92,"d":"92.00₴"},{"$f":"ТаблицяВитрати[[#This Row],[Прогнозовано]]-ТаблицяВитрати[[#This Row],[Фактично]]","v":{"v":-12,"d":"-12.00₴"}}]
[null,"Домашні тварини","Іграшки",{"v":61,"d":"61.00₴"},{"v":22,"d":"22.00₴"},{"$f":"ТаблицяВитрати[[#This Row],[Прогнозовано]]-ТаблицяВитрати[[#This Row],[Фактично]]","v":{"v":39,"d":"39.00₴"}}]
[null,"Домашні тварини","Інше",{"v":83,"d":"83.00₴"},{"v":51,"d":"51.00₴"},{"$f":"ТаблицяВитрати[[#This Row],[Прогнозовано]]-ТаблицяВитрати[[#This Row],[Фактично]]","v":{"v":32,"d":"32.00₴"}}]
[null,"Догляд за собою","Медицина",{"v":28,"d":"28.00₴"},{"v":10,"d":"10.00₴"},{"$f":"ТаблицяВитрати[[#This Row],[Прогнозовано]]-ТаблицяВитрати[[#This Row],[Фактично]]","v":{"v":18,"d":"18.00₴"}}]
[null,"Догляд за собою","Волосся/нігті",{"v":25,"d":"25.00₴"},{"v":81,"d":"81.00₴"},{"$f":"ТаблицяВитрати[[#This Row],[Прогнозовано]]-ТаблицяВитрати[[#This Row],[Фактично]]","v":{"v":-56,"d":"-56.00₴"}}]
[null,"Догляд за собою","Одяг",{"v":59,"d":"59.00₴"},{"v":72,"d":"72.00₴"},{"$f":"ТаблицяВитрати[[#This Row],[Прогнозовано]]-ТаблицяВитрати[[#This Row],[Фактично]]","v":{"v":-13,"d":"-13.00₴"}}]
[null,"Догляд за собою","Хімчистка",{"v":89,"d":"89.00₴"},{"v":90,"d":"90.00₴"},{"$f":"ТаблицяВитрати[[#This Row],[Прогнозовано]]-ТаблицяВитрати[[#This Row],[Фактично]]","v":{"v":-1,"d":"-1.00₴"}}]
[null,"Догляд за собою","Спортзал",{"v":78,"d":"78.00₴"},{"v":48,"d":"48.00₴"},{"$f":"ТаблицяВитрати[[#This Row],[Прогнозовано]]-ТаблицяВитрати[[#This Row],[Фактично]]","v":{"v":30,"d":"30.00₴"}}]
[null,"Догляд за собою","Екскурсії тощо",{"v":6,"d":"6.00₴"},{"v":73,"d":"73.00₴"},{"$f":"ТаблицяВитрати[[#This Row],[Прогнозовано]]-ТаблицяВитрати[[#This Row],[Фактично]]","v":{"v":-67,"d":"-67.00₴"}}]
[null,"Догляд за собою","Інше",{"v":80,"d":"80.00₴"},{"v":66,"d":"66.00₴"},{"$f":"ТаблицяВитрати[[#This Row],[Прогнозовано]]-ТаблицяВитрати[[#This Row],[Фактично]]","v":{"v":14,"d":"14.00₴"}}]
[null,"Розваги","Відео/DVD",{"v":11,"d":"11.00₴"},{"v":29,"d":"29.00₴"},{"$f":"ТаблицяВитрати[[#This Row],[Прогнозовано]]-ТаблицяВитрати[[#This Row],[Фактично]]","v":{"v":-18,"d":"-18.00₴"}}]
[null,"Розваги","Компакт-диски",{"v":77,"d":"77.00₴"},{"v":32,"d":"32.00₴"},{"$f":"ТаблицяВитрати[[#This Row],[Прогнозовано]]-ТаблицяВитрати[[#This Row],[Фактично]]","v":{"v":45,"d":"45.00₴"}}]
[null,"Розваги","Фільми",{"v":71,"d":"71.00₴"},{"v":43,"d":"43.00₴"},{"$f":"ТаблицяВитрати[[#This Row],[Прогнозовано]]-ТаблицяВитрати[[#This Row],[Фактично]]","v":{"v":28,"d":"28.00₴"}}]
[null,"Розваги","Концерти",{"v":64,"d":"64.00₴"},{"v":21,"d":"21.00₴"},{"$f":"ТаблицяВитрати[[#This Row],[Прогнозовано]]-ТаблицяВитрати[[#This Row],[Фактично]]","v":{"v":43,"d":"43.00₴"}}]
[null,"Розваги","Спортивні події",{"v":47,"d":"47.00₴"},{"v":57,"d":"57.00₴"},{"$f":"ТаблицяВитрати[[#This Row],[Прогнозовано]]-ТаблицяВитрати[[#This Row],[Фактично]]","v":{"v":-10,"d":"-10.00₴"}}]
[null,"Розваги","Театри",{"v":28,"d":"28.00₴"},{"v":1,"d":"1.00₴"},{"$f":"ТаблицяВитрати[[#This Row],[Прогнозовано]]-ТаблицяВитрати[[#This Row],[Фактично]]","v":{"v":27,"d":"27.00₴"}}]
[null,"Розваги","Інше",{"v":13,"d":"13.00₴"},{"v":42,"d":"42.00₴"},{"$f":"ТаблицяВитрати[[#This Row],[Прогнозовано]]-ТаблицяВитрати[[#This Row],[Фактично]]","v":{"v":-29,"d":"-29.00₴"}}]
[null,"Кредити","Власне",{"v":65,"d":"65.00₴"},{"v":6,"d":"6.00₴"},{"$f":"ТаблицяВитрати[[#This Row],[Прогнозовано]]-ТаблицяВитрати[[#This Row],[Фактично]]","v":{"v":59,"d":"59.00₴"}}]
[null,"Кредити","На енергозбереження",{"v":100,"d":"100.00₴"},{"v":36,"d":"36.00₴"},{"$f":"ТаблицяВитрати[[#This Row],[Прогнозовано]]-ТаблицяВитрати[[#This Row],[Фактично]]","v":{"v":64,"d":"64.00₴"}}]
[null,"Кредити","Кредитна картка",{"v":29,"d":"29.00₴"},{"v":69,"d":"69.00₴"},{"$f":"ТаблицяВитрати[[#This Row],[Прогнозовано]]-ТаблицяВитрати[[#This Row],[Фактично]]","v":{"v":-40,"d":"-40.00₴"}}]
[null,"Кредити","Кредитна картка",{"v":64,"d":"64.00₴"},{"v":3,"d":"3.00₴"},{"$f":"ТаблицяВитрати[[#This Row],[Прогнозовано]]-ТаблицяВитрати[[#This Row],[Фактично]]","v":{"v":61,"d":"61.00₴"}}]
[null,"Кредити","Кредитна картка",{"v":34,"d":"34.00₴"},{"v":35,"d":"35.00₴"},{"$f":"ТаблицяВитрати[[#This Row],[Прогнозовано]]-ТаблицяВитрати[[#This Row],[Фактично]]","v":{"v":-1,"d":"-1.00₴"}}]
[null,"Кредити","Інше",{"v":38,"d":"38.00₴"},{"v":52,"d":"52.00₴"},{"$f":"ТаблицяВитрати[[#This Row],[Прогнозовано]]-ТаблицяВитрати[[#This Row],[Фактично]]","v":{"v":-14,"d":"-14.00₴"}}]
[null,"Податки","На доходи",{"v":84,"d":"84.00₴"},{"v":36,"d":"36.00₴"},{"$f":"ТаблицяВитрати[[#This Row],[Прогнозовано]]-ТаблицяВитрати[[#This Row],[Фактично]]","v":{"v":48,"d":"48.00₴"}}]
[null,"Податки","На майно",{"v":2,"d":"2.00₴"},{"v":83,"d":"83.00₴"},{"$f":"ТаблицяВитрати[[#This Row],[Прогнозовано]]-ТаблицяВитрати[[#This Row],[Фактично]]","v":{"v":-81,"d":"-81.00₴"}}]
[null,"Податки","Місцеві",{"v":40,"d":"40.00₴"},{"v":20,"d":"20.00₴"},{"$f":"ТаблицяВитрати[[#This Row],[Прогнозовано]]-ТаблицяВитрати[[#This Row],[Фактично]]","v":{"v":20,"d":"20.00₴"}}]
[null,"Податки","Інше",{"v":35,"d":"35.00₴"},{"v":72,"d":"72.00₴"},{"$f":"ТаблицяВитрати[[#This Row],[Прогнозовано]]-ТаблицяВитрати[[#This Row],[Фактично]]","v":{"v":-37,"d":"-37.00₴"}}]
[null,"Заощадження або інвестиції","Пенсійний внесок",{"v":34,"d":"34.00₴"},{"v":20,"d":"20.00₴"},{"$f":"ТаблицяВитрати[[#This Row],[Прогнозовано]]-ТаблицяВитрати[[#This Row],[Фактично]]","v":{"v":14,"d":"14.00₴"}}]
[null,"Заощадження або інвестиції","Депозити",{"v":68,"d":"68.00₴"},{"v":98,"d":"98.00₴"},{"$f":"ТаблицяВитрати[[#This Row],[Прогнозовано]]-ТаблицяВитрати[[#This Row],[Фактично]]","v":{"v":-30,"d":"-30.00₴"}}]
[null,"Заощадження або інвестиції","На навчання",{"v":89,"d":"89.00₴"},{"v":68,"d":"68.00₴"},{"$f":"ТаблицяВитрати[[#This Row],[Прогнозовано]]-ТаблицяВитрати[[#This Row],[Фактично]]","v":{"v":21,"d":"21.00₴"}}]
[null,"Заощадження або інвестиції","Інше",{"v":82,"d":"82.00₴"},{"v":26,"d":"26.00₴"},{"$f":"ТаблицяВитрати[[#This Row],[Прогнозовано]]-ТаблицяВитрати[[#This Row],[Фактично]]","v":{"v":56,"d":"56.00₴"}}]
[null,"Подарунки й пожертви","На благодійність 1",{"v":41,"d":"41.00₴"},{"v":85,"d":"85.00₴"},{"$f":"ТаблицяВитрати[[#This Row],[Прогнозовано]]-ТаблицяВитрати[[#This Row],[Фактично]]","v":{"v":-44,"d":"-44.00₴"}}]
[null,"Подарунки й пожертви","На благодійність 2",{"v":0,"d":"0.00₴"},{"v":69,"d":"69.00₴"},{"$f":"ТаблицяВитрати[[#This Row],[Прогнозовано]]-ТаблицяВитрати[[#This Row],[Фактично]]","v":{"v":-69,"d":"-69.00₴"}}]
[null,"Подарунки й пожертви","На благодійність 3",{"v":2,"d":"2.00₴"},{"v":57,"d":"57.00₴"},{"$f":"ТаблицяВитрати[[#This Row],[Прогнозовано]]-ТаблицяВитрати[[#This Row],[Фактично]]","v":{"v":-55,"d":"-55.00₴"}}]
[null,"Юридичні послуги","Адвокат",{"v":7,"d":"7.00₴"},{"v":98,"d":"98.00₴"},{"$f":"ТаблицяВитрати[[#This Row],[Прогнозовано]]-ТаблицяВитрати[[#This Row],[Фактично]]","v":{"v":-91,"d":"-91.00₴"}}]
[null,"Юридичні послуги","Аліменти",{"v":39,"d":"39.00₴"},{"v":85,"d":"85.00₴"},{"$f":"ТаблицяВитрати[[#This Row],[Прогнозовано]]-ТаблицяВитрати[[#This Row],[Фактично]]","v":{"v":-46,"d":"-46.00₴"}}]
[null,"Юридичні послуги","Судові виплати",{"v":78,"d":"78.00₴"},{"v":84,"d":"84.00₴"},{"$f":"ТаблицяВитрати[[#This Row],[Прогнозовано]]-ТаблицяВитрати[[#This Row],[Фактично]]","v":{"v":-6,"d":"-6.00₴"}}]
[null,"Юридичні послуги","Інше",{"v":93,"d":"93.00₴"},{"v":71,"d":"71.00₴"},{"$f":"ТаблицяВитрати[[#This Row],[Прогнозовано]]-ТаблицяВитрати[[#This Row],[Фактично]]","v":{"v":22,"d":"22.00₴"}}]
[null,"Підсумок",{"$nulls":3},{"$f":"SUBTOTAL(109,ТаблицяВитрати[Різниця])","v":{"v":-117,"d":"-117.00₴"}}]